bitfinex-derivatives/quotes_ETHF0:USTF0_20250709
["timestamp","ask_amount","ask_price","bid_price","bid_amount"]
[1752040144477,14.33751951,2630.7,2630.6,4.12076347]
[1752040144881,9.87011951,2630.7,2630.6,0.76017]
[1752040145285,3.2078,2631.0,2630.9,0.76008]
[1752040145475,7.97579341,2631.0,2630.9,0.76008]
[1752040145786,7.97579341,2631.0,2630.9,4.12118605]
[1752040145787,13.07791951,2631.0,2630.9,4.12118605]
[1752040146086,3.2078,2631.0,2630.9,4.12118605]
[1752040146482,0.662,2631.0,2630.9,4.12118605]
[1752040147083,0.662,2631.0,2630.9,0.76008]
[1752040147588,17.18391292,2631.0,2630.7,4.48506066]
[1752040147783,10.43684219,2631.0,2630.9,3.35925877]
[1752040147983,23.6281617,2631.0,2630.9,2.66975877]
[1752040148186,0.76031,2630.1,2630.0,7.79791493]
[1752040148376,2.36981,2630.1,2629.9,0.76035]
[1752040148780,1.6095,2630.1,2630.0,0.76034]
[1752040149177,0.76034,2630.0,2629.8,0.76039]
[1752040149377,3.2078,2630.3,2629.6,3.2078]
[1752040149585,1.70785,2630.0,2629.8,0.76039]
[1752040149886,1.70785,2630.0,2629.7,0.76041]
[1752040150186,0.662,2629.8,2629.6,3.96824]
[1752040150385,1.70793,2629.7,2629.6,3.2078]
[1752040150576,2.36993,2629.7,2629.5,0.76047]
[1752040150783,1.42243,2629.7,2629.5,0.76047]
[1752040150983,1.70796,2629.6,2629.4,0.76049]
[1752040151183,1.6095,2629.5,2629.2,3.2078]
[1752040151377,1.4225,2629.5,2629.2,3.96836]
[1752040151588,0.9475,2629.4,2629.3,0.76054]
[1752040151784,0.9475,2629.7,2629.4,0.7605]
[1752040152089,0.662,2629.5,2629.4,0.76051]
[1752040152282,4.1553,2629.9,2629.2,7.75767878]
[1752040152483,3.2078,2629.9,2629.5,2.64849878]
[1752040152684,3.96817,2629.9,2629.6,0.76044]
[1752040152884,0.7604,2629.8,2629.6,0.76044]
[1752040153085,0.662,2629.7,2629.3,6.46049878]
[1752040153387,0.662,2629.7,2629.6,0.76045]
[1752040154990,1.6095,2629.7,2629.6,0.76045]
[1752040155886,1.6095,2629.7,2629.3,6.46049878]
[1752040155887,0.9475,2630.0,2629.9,0.76037]
[1752040156190,3.2078,2630.1,2630.0,0.76034]
[1752040156388,3.8323,2630.1,2630.0,0.76034]
[1752040156586,3.8323,2630.1,2629.9,0.76036]
[1752040156785,0.9475,2630.0,2629.9,0.76036]
[1752040156992,1.572,2630.0,2629.9,0.76036]
[1752040157192,1.572,2630.0,2629.4,3.2078]
[1752040157388,0.9953,2629.9,2629.8,0.76039]
[1752040157585,1.6198,2629.9,2629.8,0.76039]
[1752040159385,2.38017,2629.9,2629.7,0.7604]
[1752040159586,0.9953,2629.8,2629.7,0.7604]
[1752040159786,1.6198,2629.8,2629.7,0.7604]
[1752040159992,4.8276,2629.8,2629.7,0.7604]
[1752040161486,3.8323,2629.8,2629.7,0.7604]
[1752040161887,4.8276,2629.8,2629.7,0.7604]
[1752040162383,0.6245,2629.8,2629.7,0.7604]
[1752040163288,4.71129,2630.2,2630.0,0.76034]
[1752040163490,1.6198,2630.1,2630.0,0.76034]
[1752040163691,7.0013,2630.1,2629.6,2.64849878]
[1752040163887,1.75564,2630.0,2629.9,0.76036]
[1752040164083,6.006,2630.0,2629.9,0.76036]
[1752040164790,6.76634,2630.0,2629.9,0.76036]
[1752040164987,7.0013,2630.0,2629.9,0.76036]
[1752040165399,5.3815,2630.0,2629.9,0.76036]
[1752040165990,6.006,2630.0,2629.9,0.76036]
[1752040166495,7.0013,2630.0,2629.9,0.76037]
[1752040167291,7.76164,2630.0,2629.9,0.76037]
[1752040167489,7.0013,2630.0,2629.9,0.76037]
[1752040167885,0.76039,2629.9,2629.4,7.75755878]
[1752040168091,5.3713,2629.9,2629.8,0.7604]
[1752040168292,6.9911,2629.9,2629.8,0.7604]
[1752040168493,7.75147,2629.9,2629.8,0.7604]
[1752040168894,6.9911,2629.9,2629.8,0.7604]
[1752040169690,5.9958,2629.9,2629.8,0.7604]
[1752040169891,5.3713,2629.9,2629.8,0.7604]
[1752040170091,4.2031,2630.1,2630.0,0.76034]
[1752040170291,3.951,2630.2,2630.1,0.76031]
[1752040170494,5.5993,2630.2,2630.1,0.76031]
[1752040171691,4.9748,2630.2,2630.1,0.76031]
[1752040171898,9.7319,2630.6,2630.0,4.54934878]
[1752040172098,6.5509,2630.6,2630.5,0.76019]
[1752040172292,5.5556,2630.6,2630.5,0.76019]
[1752040172995,0.6245,2630.6,2630.5,0.76019]
[1752040173191,3.2078,2630.7,2630.6,0.76017]
[1752040173392,4.59244,2630.7,2630.5,0.76017]
[1752040173600,3.2078,2630.7,2630.6,0.76017]
[1752040173791,3.8323,2630.7,2630.6,0.76017]
[1752040174298,3.8323,2630.7,2630.3,2.64849878]
[1752040174596,3.8323,2630.7,2630.2,3.2078]
[1752040174801,6.1689,2630.6,2630.5,0.76019]
[1752040174999,6.7934,2630.6,2630.5,0.76019]
[1752040175403,5.1736,2630.6,2630.5,0.76019]
[1752040175700,5.7981,2630.6,2630.5,0.76019]
[1752040175995,0.6245,2630.6,2630.5,0.76019]
[1752040176500,10.13677,2631.0,2630.5,0.76019]
[1752040176501,3.2078,2631.0,2630.9,0.76008]
[1752040176698,3.8323,2631.0,2630.9,0.76008]
[1752040176893,5.1736,2631.3,2631.2,0.75999]
[1752040177096,3.2078,2631.4,2630.9,0.76008]
[1752040177601,6.1689,2631.3,2631.2,0.75999]
[1752040177799,6.7934,2631.3,2631.2,0.75999]
[1752040178300,6.7934,2631.3,2630.8,7.53316087]
[1752040178607,0.7601,2630.9,2630.6,2.43701209]
[1752040178802,0.6245,2630.7,2630.6,0.76015]
[1752040179102,0.76017,2630.6,2630.5,1.67686209]
[1752040179403,0.76017,2630.6,2630.4,5.44337787]
[1752040179404,7.45187,2630.6,2630.4,4.88466209]
[1752040179701,6.6917,2630.6,2630.4,5.64488209]
[1752040179903,7.45187,2630.6,2630.4,5.64488209]
[1752040180102,6.45657,2630.6,2630.5,1.67686209]
[1752040180302,6.45657,2630.6,2630.5,0.76019]
[1752040180303,6.6917,2630.6,2630.5,0.76019]
[1752040180502,6.6917,2630.6,2630.5,2.43705209]
[1752040180702,6.6917,2630.6,2630.5,2.99576787]
[1752040181109,6.6917,2630.6,2630.5,0.76019]
[1752040181501,7.45188,2630.6,2630.5,2.2342318]
[1752040181705,0.9953,2630.6,2630.5,2.9944218]
[1752040182005,1.6198,2630.6,2630.5,2.9944218]
[1752040182201,1.6198,2630.6,2630.5,0.76019]
[1752040182401,1.6198,2630.6,2630.5,2.99444047]
[1752040182597,1.6198,2630.6,2630.5,1.67569391]
[1752040182598,7.74147,2630.6,2630.5,1.67569391]
[1752040182805,6.9813,2630.6,2630.4,1.67569391]
[1752040183005,5.3615,2630.6,2630.5,2.43588391]
[1752040183308,4.2031,2630.8,2630.7,0.76014]
[1752040183503,10.1891,2630.8,2630.7,0.76014]
[1752040183707,3.8323,2630.8,2630.7,0.76014]
[1752040184304,0.6245,2630.8,2630.7,0.76014]
[1752040185009,0.6245,2630.8,2630.7,2.43555407]
[1752040186007,4.2031,2631.2,2630.7,1.67541407]
[1752040186315,9.5152,2631.2,2631.1,0.76002]
[1752040186814,10.1854,2631.2,2631.1,0.76002]
[1752040188110,9.1901,2631.2,2631.1,0.76002]
[1752040188710,10.1895,2631.2,2631.1,0.76002]
[1752040188910,10.9495,2631.2,2630.9,1.67541407]
[1752040189110,0.9994,2631.1,2631.0,0.76003]
[1752040189310,6.7192,2631.1,2631.0,0.76003]
[1752040191812,4.73076,2631.4,2630.9,1.67370938]
[1752040192012,0.9994,2631.3,2630.9,1.67370938]
[1752040192204,0.6702,2631.0,2630.9,2.43378938]
[1752040192410,1.6696,2631.0,2630.9,2.43378938]
[1752040192611,2.42965,2631.0,2630.9,1.67370938]
[1752040193306,2.42965,2631.0,2630.8,3.96789]
[1752040193307,0.76008,2630.9,2630.8,1.67370938]
[1752040193508,0.76011,2630.8,2630.7,1.67370938]
[1752040193713,2.42971,2630.8,2630.7,1.67370938]
[1752040193913,7.79021,2630.8,2630.7,1.67370938]
[1752040194218,7.0301,2630.8,2630.7,2.43384938]
[1752040194919,7.0301,2630.8,2630.7,0.76014]
[1752040195218,7.0301,2630.8,2630.7,2.43482947]
[1752040195419,6.0307,2630.8,2630.7,2.43482947]
[1752040195613,0.9994,2631.3,2631.2,0.75999]
[1752040195816,1.6696,2631.3,2631.2,0.75999]
[1752040196116,7.0814,2631.3,2631.2,0.75999]
[1752040197322,10.2892,2631.3,2631.2,0.75999]
[1752040197518,7.0814,2631.3,2631.2,0.75999]
[1752040197923,10.2892,2631.3,2631.2,0.75999]
[1752040199022,11.04916,2631.3,2630.9,1.67443357]
[1752040199223,11.04916,2631.3,2631.2,0.75999]
[1752040199224,3.2078,2631.3,2631.2,0.75999]
[1752040199532,6.9621,2631.3,2631.2,0.75999]
[1752040200021,6.9621,2631.3,2631.1,1.67443357]
[1752040200327,1.75939,2631.2,2631.1,0.76002]
[1752040200527,6.9621,2631.2,2631.1,0.76002]
[1752040200729,6.9621,2631.2,2631.1,1.67443357]
[1752040200923,7.72209,2631.2,2631.0,2.43447357]
[1752040201124,5.9627,2631.2,2631.1,2.9925981]
[1752040201518,6.72269,2631.2,2631.1,2.2325781]
[1752040201725,6.9621,2631.2,2631.0,1.67622998]
[1752040201923,8.87672,2631.1,2631.0,1.67622998]
[1752040202125,14.77912,2631.1,2631.0,1.67622998]
[1752040203426,0.76005,2631.0,2630.9,1.67622998]
[1752040203620,7.66185,2631.0,2630.9,1.67622998]
[1752040204529,6.9018,2631.0,2630.9,2.43630998]
[1752040204732,6.9018,2631.0,2630.9,0.76008]
[1752040205325,5.2322,2631.0,2630.9,0.76008]
[1752040205830,5.9024,2631.0,2630.9,0.76008]
[1752040206031,5.2322,2631.0,2630.9,0.76008]
[1752040206332,5.9024,2631.0,2630.9,2.9926581]
[1752040206631,0.6702,2631.0,2630.9,2.9926581]
[1752040207027,0.6702,2631.0,2630.9,0.76008]
[1752040207622,9.3701,2631.4,2631.3,0.75996]
[1752040207929,0.75997,2631.3,2631.1,2.43715993]
[1752040208132,0.6702,2631.2,2631.1,2.43715993]
[1752040208334,1.6696,2631.2,2631.1,2.43715993]
[1752040208522,7.0662,2631.2,2631.1,2.43715993]
[1752040208727,7.0662,2631.2,2631.1,0.76001]
[1752040209229,0.76002,2631.1,2631.0,2.23619991]
[1752040209534,0.76005,2631.0,2630.9,2.23683903]
[1752040209728,0.6702,2631.0,2630.9,2.23683903]
[1752040209929,7.0662,2631.0,2630.9,2.99691903]
[1752040210127,10.274,2631.0,2630.9,2.99691903]
[1752040211033,11.03405,2631.0,2630.9,2.23683903]
[1752040211329,9.2746,2631.0,2630.9,2.99691903]
[1752040211535,4.96717,2631.3,2630.9,2.23683903]
[1752040211724,4.96717,2631.3,2631.2,1.67797036]
[1752040211725,4.2072,2631.3,2631.2,1.67797036]
[1752040211930,5.63737,2631.3,2631.2,1.67797036]
[1752040212233,4.8774,2631.3,2631.2,2.43796036]
[1752040213632,5.63736,2631.3,2631.2,2.43796036]
[1752040213831,5.63736,2631.3,2631.2,1.67797036]
[1752040214031,4.8774,2631.3,2631.2,1.67797036]
[1752040214231,5.63736,2631.3,2631.2,1.67797036]
[1752040214432,4.8774,2631.3,2631.2,2.43796036]
[1752040214735,4.8774,2631.3,2631.2,1.67797036]
[1752040214936,5.63736,2631.3,2631.2,1.67797036]
[1752040215934,5.63736,2631.3,2631.2,2.43796036]
[1752040216136,4.8774,2631.3,2631.2,2.43796036]
[1752040216428,4.8774,2631.3,2631.2,2.43862245]
[1752040216737,5.63736,2631.3,2631.2,2.43862245]
[1752040217432,4.8774,2631.3,2631.2,2.43862245]
[1752040218639,4.8741,2631.3,2631.2,2.43862245]
[1752040219334,8.1059,2631.6,2631.5,0.75991]
[1752040219538,3.2078,2631.6,2631.5,0.75991]
[1752040219738,5.63399,2631.6,2631.4,2.4383879]
[1752040220037,1.0066,2631.5,2631.4,2.4383879]
[1752040220238,1.6663,2631.5,2631.4,2.4383879]
[1752040220541,1.6663,2631.5,2631.4,2.9972141]
[1752040221433,3.2078,2631.6,2631.5,0.75991]
[1752040222239,3.8675,2631.6,2631.5,0.75991]
[1752040222439,3.2078,2631.6,2631.5,0.75991]
[1752040222635,4.8741,2631.6,2631.4,2.9972041]
[1752040222832,4.8741,2631.6,2631.5,0.75991]
[1752040222833,3.2078,2631.6,2631.5,0.75991]
[1752040223337,3.8675,2631.6,2631.5,0.75991]
[1752040223539,4.62738,2631.6,2631.4,2.9972141]
[1752040223739,4.8741,2631.6,2631.5,0.75991]
[1752040223940,3.8675,2631.6,2631.5,0.75991]
[1752040224741,3.8675,2631.6,2631.4,2.9972141]
[1752040224938,4.8741,2631.6,2631.4,2.9972141]
[1752040225137,4.8741,2631.6,2631.5,0.75991]
[1752040225138,3.8675,2631.6,2631.5,0.75991]
[1752040226437,3.8675,2631.6,2631.5,2.43575394]
[1752040226842,5.63398,2631.6,2631.5,1.67584394]
[1752040227042,9.38268,2631.6,2631.5,1.67584394]
[1752040227242,0.75991,2631.5,2631.4,1.67584394]
[1752040227442,2.42621,2631.5,2631.4,1.67584394]
[1752040227636,0.75993,2631.4,2631.3,1.67584394]
[1752040227940,2.42623,2631.4,2631.3,1.67584394]
[1752040228338,2.42623,2631.4,2631.3,2.43580394]
[1752040228539,2.42623,2631.4,2631.3,1.67584394]
[1752040228737,0.75996,2631.3,2631.2,2.43581394]
[1752040228938,4.62746,2631.3,2631.2,2.43581394]
[1752040229138,5.63406,2631.3,2631.2,2.43581394]
[1752040229543,5.63406,2631.3,2631.2,1.67584394]
[1752040230639,0.75999,2631.2,2631.1,1.67584394]
[1752040230841,4.06818878,2631.2,2631.1,1.67584394]
[1752040231041,4.06818878,2631.2,2630.5,4.47350625]
[1752040231042,1.90006,2631.1,2630.5,4.47350625]
[1752040231237,0.76022,2630.4,2630.3,4.47350625]
[1752040231437,1.41992,2630.4,2630.3,4.47350625]
[1752040231643,0.76025,2630.3,2630.2,4.47350625]
[1752040231843,5.7729,2630.3,2630.2,0.76028]
[1752040232044,6.7795,2630.3,2630.2,0.76028]
[1752040232344,7.53976,2630.3,2630.1,0.76029]
[1752040232537,7.53976,2630.3,2629.8,7.1939]
[1752040233049,1.76689,2630.2,2630.0,0.76032]
[1752040233250,0.6597,2630.1,2630.0,0.76032]
[1752040234941,0.6597,2630.1,2629.8,7.1939]
[1752040235145,0.6597,2630.1,2630.0,0.76034]
[1752040235347,0.6597,2630.1,2629.9,0.76035]
[1752040235548,1.42003,2630.1,2629.8,7.95428]
[1752040235739,0.76034,2630.0,2629.8,7.95428]
[1752040235943,1.42004,2630.0,2629.8,7.95428]
[1752040236149,0.76034,2630.0,2629.8,7.95428]
[1752040236452,1.42004,2630.0,2629.8,7.95428]
[1752040237245,2.42664,2630.0,2629.8,7.1939]
[1752040237446,1.42004,2630.0,2629.8,7.95427]
[1752040237645,1.42004,2630.0,2629.8,4.74647]
[1752040237844,2.42664,2630.0,2629.8,4.74647]
[1752040238049,1.6663,2630.0,2629.8,4.74647]
[1752040238249,1.0066,2629.9,2629.8,4.74647]
[1752040238446,0.6597,2629.9,2629.8,4.74647]
[1752040238845,0.6597,2629.9,2629.8,3.9861]
[1752040239353,1.42007,2629.9,2629.8,3.9861]
[1752040240046,0.6597,2629.9,2629.8,4.7465]
[1752040240647,0.6597,2629.9,2629.3,4.47350625]
[1752040240648,1.6663,2629.9,2629.3,4.47350625]
[1752040240849,0.76045,2629.7,2629.3,3.8684]
[1752040241047,1.76706,2629.6,2629.4,0.76051]
[1752040241446,1.0066,2629.6,2629.5,0.76048]
[1752040241647,1.6663,2629.6,2629.5,0.76048]
[1752040241950,0.6597,2629.6,2629.3,4.15316214]
[1752040242150,0.76043,2629.7,2629.5,0.76046]
[1752040242354,0.6597,2629.6,2629.5,0.76046]
[1752040247352,1.90122,2629.5,2628.8,7.68130625]
[1752040247554,5.27207077,2628.9,2628.6,4.47350625]
[1752040247750,2.16078077,2628.7,2628.6,4.47350625]
[1752040247951,3.08517077,2628.7,2628.6,4.47350625]
[1752040248352,3.2078,2628.9,2628.5,5.87357702]
[1752040248649,0.6642,2628.9,2628.5,2.16083077]
[1752040249050,0.7607,2628.8,2628.5,2.16083077]
[1752040249252,0.76072,2628.7,2628.5,1.40007077]
[1752040249454,1.42492,2628.7,2628.5,2.16084077]
[1752040249655,0.6642,2628.7,2628.5,6.63434702]
[1752040249855,0.6642,2628.7,2628.5,2.16084077]
[1752040250055,0.6642,2628.7,2628.6,0.76074]
[1752040250655,0.6642,2628.7,2628.6,5.89814]
[1752040252256,1.42493,2628.7,2628.5,3.2078]
[1752040252458,0.6642,2628.7,2628.2,3.2078]
[1752040252756,5.83046,2628.6,2628.3,0.76081]
[1752040252956,0.6642,2628.4,2628.3,0.76081]
[1752040253361,0.6642,2628.4,2628.2,3.96865]
[1752040253556,0.76079,2628.5,2628.3,0.76083]
[1752040253757,6.15829,2628.5,2628.3,0.76083]
[1752040254060,0.6642,2628.4,2628.2,3.96864]
[1752040254259,1.42502,2628.4,2628.2,3.2078]
[1752040254454,1.42502,2628.4,2628.2,3.96866]
[1752040254662,1.6851,2628.4,2628.2,3.96866]
[1752040254857,2.44591,2628.4,2628.2,3.2078]
[1752040255058,2.44591,2628.4,2628.2,3.96865]
[1752040255361,1.6851,2628.4,2628.3,0.76083]
[1752040256163,5.3975,2628.5,2628.4,0.7608]
[1752040256355,1.0209,2628.7,2628.2,3.2078]
[1752040256560,1.78163,2628.7,2628.4,0.76078]
[1752040256763,1.78163,2628.7,2628.5,0.76077]
[1752040256957,0.6642,2628.6,2628.5,0.76077]
[1752040257160,1.42495,2628.6,2628.4,0.76079]
[1752040257563,5.131,2628.5,2628.4,0.76079]
[1752040258361,3.96848,2628.9,2628.2,5.85666237]
[1752040258566,0.6642,2628.6,2628.5,0.76077]
[1752040259359,3.872,2628.6,2627.8,3.2078]
[1752040259563,5.85666237,2628.3,2627.8,3.2078]
[1752040259759,1.0209,2628.2,2628.1,0.76089]
[1752040259965,0.6642,2628.3,2627.9,1.90237]
[1752040260268,0.76077,2628.5,2628.2,0.76084]
[1752040260460,6.04839,2628.5,2628.3,0.76082]
[1752040260661,0.6642,2628.4,2628.1,1.90223]
[1752040260862,5.9518,2628.5,2628.4,0.7608]
[1752040261467,6.9727,2628.5,2628.4,0.7608]
[1752040261664,4.55041237,2629.1,2628.4,0.7608]
[1752040261665,1.0209,2628.9,2628.8,0.76069]
[1752040261870,3.2078,2629.0,2628.9,0.76066]
[1752040263067,3.872,2629.0,2628.9,0.76066]
[1752040263762,0.6642,2629.0,2628.9,0.76066]
[1752040264266,0.6642,2629.0,2628.8,0.76067]
[1752040264562,5.5315,2628.9,2628.8,0.76067]
[1752040265156,1.0209,2629.2,2628.6,3.9004]
[1752040265157,1.0209,2629.2,2629.0,0.76063]
[1752040265361,0.6642,2629.1,2629.0,0.76063]
[1752040265557,3.872,2629.1,2629.0,0.76063]
[1752040266763,3.872,2629.1,2628.9,0.76065]
[1752040266963,3.872,2629.1,2629.0,0.76063]
[1752040267158,4.8929,2629.1,2629.0,0.76063]
[1752040267863,0.6642,2629.1,2629.0,0.76063]
[1752040268069,4.2287,2629.4,2629.2,0.76057]
[1752040268367,1.6851,2629.3,2629.2,0.76057]
[1752040268568,0.6642,2629.3,2629.2,0.76057]
[1752040269367,3.2078,2629.4,2629.3,0.76054]
[1752040269569,3.872,2629.4,2629.3,0.76054]
[1752040270668,3.872,2629.4,2628.7,4.13483994]
[1752040270669,0.76058,2629.2,2629.0,0.76062]
[1752040270869,1.6851,2629.1,2629.0,0.76062]
[1752040271669,4.8929,2629.1,2628.7,2.23305994]
[1752040271864,1.0209,2629.0,2628.8,0.76068]
[1752040272066,0.6642,2628.9,2628.8,0.76068]
[1752040272264,1.6851,2628.9,2628.8,0.76068]
[1752040273765,1.6851,2628.9,2628.5,5.44085994]
[1752040273965,1.6851,2628.9,2628.8,0.76069]
[1752040274467,3.96841,2629.1,2628.5,7.34276994]
[1752040274468,3.2078,2629.1,2629.0,0.76063]
[1752040274667,3.872,2629.1,2629.0,0.76063]
[1752040274968,4.8929,2629.1,2629.0,0.76063]
[1752040276171,3.872,2629.1,2629.0,0.76063]
[1752040278776,4.8343,2629.1,2629.0,0.76063]
[1752040279566,1.6265,2629.1,2629.0,0.76063]
[1752040279775,1.6265,2629.1,2629.0,2.99368994]
[1752040280479,3.2078,2629.4,2629.0,2.23305994]
[1752040280779,3.8473,2629.4,2629.3,0.76054]
[1752040281375,4.8096,2629.4,2629.3,0.76054]
[1752040281586,10.1455,2629.4,2629.3,0.76054]
[1752040281872,10.90601,2629.4,2629.1,2.23305994]
[1752040282080,2.64886237,2629.2,2628.9,2.23305994]
[1752040282274,1.40013,2629.0,2628.9,2.23305994]
[1752040282476,0.76071,2628.7,2628.6,3.34185323]
[1752040282676,1.40021,2628.7,2628.6,3.34185323]
[1752040282883,2.36251,2628.7,2628.6,3.34185323]
[1752040283083,2.36251,2628.7,2628.6,4.10259323]
[1752040283288,2.36251,2628.7,2628.6,3.34185323]
[1752040283486,2.36251,2628.7,2628.6,4.10259323]
[1752040283687,1.6018,2628.7,2628.6,0.76074]
[1752040284086,7.0582,2628.7,2628.6,0.76074]
[1752040284884,6.0959,2628.7,2628.6,1.41804]
[1752040285287,7.0582,2628.7,2628.5,3.34185323]
[1752040285489,7.0582,2628.7,2628.6,0.76074]
[1752040285690,7.0582,2628.7,2628.5,0.76076]
[1752040285888,0.9623,2628.6,2628.5,0.76076]
[1752040286088,7.0582,2628.6,2628.5,0.76076]
[1752040286284,7.81895,2628.6,2628.4,4.10263323]
[1752040286488,1.72307,2628.5,2628.4,3.34185323]
[1752040286689,6.7524,2628.5,2628.4,4.10265323]
[1752040287293,6.7524,2628.5,2628.4,0.7608]
[1752040287491,7.51319,2628.5,2628.3,4.10267323]
[1752040287691,7.51319,2628.5,2628.4,0.7608]
[1752040287692,6.7524,2628.5,2628.4,0.7608]
[1752040287898,5.1506,2628.5,2628.4,1.4181]
[1752040288093,5.7901,2628.5,2628.4,1.4181]
[1752040288389,0.6395,2628.5,2628.4,4.75995323]
[1752040289096,0.6395,2628.5,2628.4,1.4181]
[1752040289393,0.6395,2628.5,2628.4,4.75995323]
[1752040289795,2.36257,2628.5,2628.4,3.34185323]
[1752040289994,0.6395,2628.5,2628.4,4.10264323]
[1752040290195,1.40027,2628.5,2628.4,3.34185323]
[1752040290694,1.40027,2628.5,2628.4,4.10265323]
[1752040290895,0.6395,2628.5,2628.4,4.10265323]
[1752040291095,0.6395,2628.5,2628.4,0.7608]
[1752040291291,0.6395,2628.5,2628.4,4.10265323]
[1752040292391,5.3615,2628.6,2628.5,0.76077]
[1752040292591,6.001,2628.6,2628.5,0.76077]
[1752040293287,5.3615,2628.6,2628.5,0.76077]
[1752040293598,0.76077,2628.5,2628.4,3.34185323]
[1752040293795,6.76176,2628.6,2628.4,4.10264323]
[1752040293996,0.76077,2628.5,2628.4,3.34185323]
[1752040294196,6.27487,2628.5,2628.4,3.34185323]
[1752040294798,5.5141,2628.5,2628.4,4.75995323]
[1752040294993,6.1536,2628.5,2628.4,4.10265323]
[1752040295193,7.1159,2628.5,2628.4,1.4181]
[1752040295392,6.1536,2628.5,2628.4,1.4181]
[1752040295597,6.1536,2628.5,2628.4,4.10265323]
[1752040296199,6.1536,2628.5,2628.4,4.75995323]
[1752040297602,6.1536,2628.5,2628.4,1.4181]
[1752040297899,6.1536,2628.5,2628.4,4.75995323]
[1752040298495,5.5141,2628.5,2628.4,4.75995323]
[1752040298691,7.0309,2628.9,2628.7,0.76071]
[1752040298892,5.707,2628.8,2628.7,1.41801]
[1752040299199,7.0309,2628.9,2628.8,0.76069]
[1752040299499,7.6704,2628.9,2628.8,1.41799]
[1752040300096,7.0309,2628.9,2628.8,1.41799]
[1752040300400,3.8473,2628.9,2628.8,1.41799]
[1752040300999,0.9623,2629.1,2629.0,0.76063]
[1752040301203,0.76066,2628.9,2628.7,0.7607]
[1752040301399,0.6395,2628.8,2628.7,1.418]
[1752040301603,6.6693,2628.8,2628.7,1.418]
[1752040302004,6.6693,2628.8,2628.7,0.7607]
[1752040302304,6.6693,2628.8,2628.7,0.76071]
[1752040302498,7.42999,2628.8,2628.6,4.12652695]
[1752040302896,7.43,2628.8,2628.6,3.36579695]
[1752040303095,0.76071,2628.7,2628.5,3.36579695]
[1752040303304,5.4185,2628.6,2628.5,4.12656695]
[1752040303806,5.4185,2628.6,2628.5,4.78386695]
[1752040304901,5.4185,2628.6,2628.5,1.41807]
[1752040305605,5.4185,2628.6,2628.5,0.76077]
[1752040305906,6.0694,2628.6,2628.5,1.42057]
[1752040306102,3.2078,2628.9,2628.7,0.7607]
[1752040306407,0.6509,2628.8,2628.7,0.7607]
[1752040306706,5.9056,2628.8,2628.7,0.7607]
[1752040307404,5.9056,2628.8,2628.7,1.4205]
[1752040308910,5.9056,2628.8,2628.7,0.7607]
[1752040309110,7.6849,2628.8,2628.5,4.12654695]
[1752040309307,1.0186,2628.7,2628.6,0.76074]
[1752040309511,6.5938,2628.7,2628.6,0.76074]
[1752040309701,5.5752,2628.7,2628.6,0.76074]
[1752040309905,5.5752,2628.7,2628.6,1.42054]
[1752040310105,6.2261,2628.7,2628.6,1.42054]
[1752040310507,6.2261,2628.7,2628.6,4.78633695]
[1752040310703,0.6509,2628.7,2628.6,4.78633695]
[1752040311916,2.43021,2628.7,2628.6,3.36579695]
[1752040312311,0.76074,2628.6,2628.5,2.67599695]
[1752040312509,7.49874,2628.6,2628.4,0.76079]
[1752040312712,1.0186,2628.5,2628.4,0.76079]
[1752040312910,7.49877,2628.5,2628.4,0.76079]
[1752040313112,6.738,2628.5,2628.4,0.76079]
[1752040314116,6.738,2628.5,2628.4,1.42059]
[1752040314413,6.738,2628.5,2628.4,0.76079]
[1752040314615,5.7194,2628.5,2628.4,1.42059]
[1752040315018,6.738,2628.5,2628.4,0.76079]
[1752040315212,7.49877,2628.5,2628.3,0.76081]
[1752040315413,6.738,2628.5,2628.4,0.7608]
[1752040316723,6.738,2628.5,2628.3,0.76082]
[1752040317320,6.738,2628.5,2628.4,0.7608]
[1752040317624,7.49878,2628.5,2628.3,0.76081]
[1752040318020,6.738,2628.5,2628.4,0.7608]
[1752040319115,6.738,2628.5,2628.4,1.4206]
[1752040319315,6.738,2628.5,2628.4,0.7608]
[1752040319718,6.738,2628.5,2628.4,1.4206]
[1752040320923,7.49877,2628.5,2628.3,0.76081]
[1752040321116,1.0186,2628.4,2628.3,0.76081]
[1752040321424,6.779,2628.4,2628.3,1.42061]
[1752040321621,5.1095,2628.4,2628.3,1.42061]
[1752040321924,6.9789,2628.6,2628.5,0.76077]
[1752040322216,6.9789,2628.6,2628.5,1.42057]
[1752040322618,3.8587,2628.6,2628.5,1.42057]
[1752040324223,9.4537,2628.6,2628.5,1.42057]
[1752040325220,8.8028,2628.6,2628.2,4.45580431]
[1752040325418,4.0143,2628.5,2628.0,4.45580431]
[1752040325621,5.595,2628.4,2628.0,4.45580431]
[1752040325822,6.35581,2628.4,2628.2,0.76084]
[1752040326224,0.76087,2628.2,2628.0,5.21670431]
[1752040326427,5.4434,2628.1,2628.0,0.7609]
[1752040327024,5.4434,2628.1,2628.0,1.4207]
[1752040327220,5.4434,2628.1,2628.0,0.7609]
[1752040327424,5.4434,2628.1,2628.0,1.4207]
[1752040327822,5.4434,2628.1,2628.0,0.7609]
[1752040328134,5.4434,2628.1,2628.0,1.4207]
[1752040328832,6.0943,2628.1,2628.0,1.4207]
[1752040329435,0.6509,2628.1,2628.0,1.4207]
[1752040331430,4.0143,2628.5,2628.4,0.7608]
[1752040331630,5.6838,2628.5,2628.4,0.7608]
[1752040331835,10.7943,2628.5,2628.4,3.00691362]
[1752040332638,10.7943,2628.5,2628.4,3.66671362]
[1752040333932,9.7757,2628.5,2628.4,3.66671362]
[1752040334939,1.0186,2628.7,2628.6,0.76074]
[1752040335134,1.6695,2628.7,2628.6,0.76074]